fUSD/lending_fUSD_20250720
["ID","MTS","AMOUNT","RATE_DAILY","PERIOD"]
[373399731,1752985858527,-480.0,0.00019287,2]
[373399732,1752985858536,-524.11794525,0.00019287,2]
[373399733,1752985858545,-480.0,0.00019287,2]
[373399734,1752985858555,-815.82,0.00019287,2]
[373399735,1752985858564,-1184.94,0.00019287,2]
[373399736,1752985858574,-480.0,0.00019287,2]
[373399737,1752985858584,-522.19617512,0.00019287,2]
[373399738,1752985858594,-595.55263636,0.00019287,2]
[373399739,1752985858603,-480.0,0.00019287,2]
[373399740,1752985858612,-525.97273398,0.00019287,2]
[373399741,1752985858621,-480.0,0.00019287,2]
[373399742,1752985858630,-151.0,0.00019287,2]
[373399743,1752985858639,-480.0,0.00019287,2]
[373399744,1752985858649,-151.0,0.00019287,2]
[373399745,1752985858658,-520.0,0.00019287,2]
[373399746,1752985858667,-527.69047437,0.00019287,2]
[373399747,1752985858676,-520.0,0.00019287,2]
[373399748,1752985858685,-480.0,0.00019287,2]
[373399749,1752985858694,-151.0,0.00019287,2]
[373399750,1752985858703,-527.51755595,0.00019287,2]
[373399751,1752985858712,-500.0,0.00019287,2]
[373399752,1752985858721,-526.20382383,0.00019287,2]
[373399753,1752985858730,-480.0,0.00019287,2]
[373399754,1752985858739,-810.6,0.00019287,2]
[373399755,1752985858748,-480.0,0.00019287,2]
[373399756,1752985858758,-520.0,0.00019287,2]
[373399757,1752985858767,-480.0,0.00019287,2]
[373399758,1752985858776,-526.29450919,0.00019287,2]
[373399759,1752985858785,-541.32326677,0.00019287,2]
[373399760,1752985858794,-480.0,0.00019287,2]
[373399761,1752985858803,-151.0,0.00019287,2]
[373399762,1752985858813,-151.0,0.00019287,2]
[373399763,1752985858822,-2043.03,0.00019287,2]
[373399764,1752985858831,-530.90688625,0.00019287,2]
[373399765,1752985858840,-480.0,0.00019287,2]
[373399766,1752985858849,-787.76,0.00019287,2]
[373399767,1752985858859,-480.0,0.00019287,2]
[373399768,1752985858867,-480.0,0.00019287,2]
[373399769,1752985858876,-480.0,0.00019287,2]
[373399770,1752985858885,-480.0,0.00019287,2]
[373399771,1752985858894,-578.75,0.00019287,2]
[373399772,1752985858903,-523.8162522,0.00019287,2]
[373399773,1752985858912,-480.0,0.00019287,2]
[373399774,1752985858921,-534.60296655,0.00019287,2]
[373399775,1752985858933,-480.0,0.00019287,2]
[373399776,1752985858943,-480.0,0.00019287,2]
[373399777,1752985858952,-487.69,0.00019287,2]
[373399778,1752985858961,-151.0,0.00019287,2]
[373399779,1752985858970,-480.0,0.00019287,2]
[373399780,1752985858981,-151.0,0.00019287,2]
[373399781,1752985858990,-480.0,0.00019287,2]
[373399782,1752985858999,-523.85577527,0.00019287,2]
[373399783,1752985859009,-522.18314506,0.00019287,2]
[373399784,1752985859018,-1134.34,0.00019287,2]
[373399785,1752985859027,-257.10920103,0.00019287,2]
[373399786,1752985859037,-534.98574652,0.00019287,2]
[373399787,1752985859046,-620.0,0.00019287,2]
[373399788,1752985859055,-480.0,0.00019287,2]
[373399789,1752985859066,-151.0,0.00019287,2]
[373399790,1752985859075,-480.0,0.00019287,2]
[373399791,1752985859084,-480.0,0.00019287,2]
[373399792,1752985859094,-602.09257389,0.00019287,2]
[373399793,1752985859103,-151.0,0.00019287,2]
[373399794,1752985859114,-151.0,0.00019287,2]
[373399795,1752985859123,-480.0,0.00019287,2]
[373399796,1752985859133,-234.771446,0.00019287,2]
[373399797,1752985859143,-531.87,0.00019287,2]
[373399798,1752985859152,-2338.26,0.00019287,2]
[373399799,1752985859162,-537.23113444,0.00019287,2]
[373399800,1752985859171,-151.0,0.00019287,2]
[373399801,1752985859180,-480.0,0.00019287,2]
[373399802,1752985859190,-151.0,0.00019287,2]
[373399803,1752985859199,-520.0,0.00019287,2]
[373399804,1752985859208,-151.0,0.00019287,2]
[373399805,1752985859218,-526.91642819,0.00019287,2]
[373399806,1752985859227,-438.85573187,0.00019287,2]
[373399807,1752985859237,-520.0,0.00019287,2]
[373399808,1752985859246,-480.0,0.00019287,2]
[373399809,1752985859256,-151.0,0.00019287,2]
[373399810,1752985859266,-151.0,0.00019287,2]
[373399811,1752985859275,-480.0,0.00019287,2]
[373399812,1752985859284,-582.02,0.00019287,2]
[373399813,1752985859294,-565.45,0.00019287,2]
[373399814,1752985859304,-151.0,0.00019287,2]
[373399815,1752985859314,-151.0,0.00019287,2]
[373399816,1752985859323,-480.0,0.00019287,2]
[373399817,1752985859332,-480.0,0.00019287,2]
[373399818,1752985859342,-500.0,0.00019287,2]
[373399819,1752985859351,-480.0,0.00019287,2]
[373399820,1752985859361,-480.0,0.00019287,2]
[373399821,1752985859371,-501.66,0.00019287,2]
[373399822,1752985859380,-480.0,0.00019287,2]
[373399823,1752985859390,-500.0,0.00019287,2]
[373399824,1752985859399,-495.14,0.00019287,2]
[373399825,1752985859409,-480.0,0.00019287,2]
[373399826,1752985859418,-480.0,0.00019287,2]
[373399827,1752985859428,-480.0,0.00019287,2]
[373399828,1752985859437,-480.0,0.00019287,2]
[373399829,1752985859446,-480.0,0.00019287,2]
[373399830,1752985859456,-480.0,0.00019287,2]
[373399831,1752985859465,-480.0,0.00019287,2]
[373399832,1752985859475,-1145.56,0.00019287,2]
[373399833,1752985859484,-3167.67,0.00019287,2]
[373399834,1752985859494,-646.8,0.00019287,2]
[373399835,1752985859503,-923.03,0.00019287,2]
[373399836,1752985859513,-480.0,0.00019287,2]
[373399837,1752985859522,-520.0,0.00019287,2]
[373399838,1752985859531,-930.33,0.00019287,2]
[373399839,1752985859541,-544.25935692,0.00019287,2]
[373399840,1752985859551,-500.0,0.00019287,2]
[373399841,1752985859561,-545.92247441,0.00019287,2]
[373399842,1752985859570,-480.0,0.00019287,2]
[373399843,1752985859580,-480.0,0.00019287,2]
[373399844,1752985859590,-480.0,0.00019287,2]
[373399845,1752985859600,-480.0,0.00019287,2]
[373399846,1752985859610,-165.049283,0.00019287,2]
[373399847,1752985859619,-480.0,0.00019287,2]
[373399848,1752985859629,-956.79,0.00019287,2]
[373399849,1752985859639,-520.0,0.00019287,2]
[373399850,1752985859649,-946.52,0.00019287,2]
[373399851,1752985859659,-747.33,0.00019287,2]
[373399852,1752985859668,-480.0,0.00019287,2]
[373399853,1752985859678,-480.0,0.00019287,2]
[373399854,1752985859687,-528.58,0.00019287,2]
[373399855,1752985859697,-480.0,0.00019287,2]
[373399856,1752985859707,-480.0,0.00019287,2]
[373399857,1752985859716,-480.0,0.00019287,2]
[373399858,1752985859726,-151.0,0.00019287,2]
[373399859,1752985859735,-151.0,0.00019287,2]
[373399860,1752985859745,-480.0,0.00019287,2]
[373399861,1752985859754,-651.73,0.00019287,2]
[373399862,1752985859763,-151.0,0.00019287,2]
[373399863,1752985859772,-480.0,0.00019287,2]
[373399864,1752985859782,-151.0,0.00019287,2]
[373399865,1752985859792,-480.0,0.00019287,2]
[373399866,1752985859801,-480.0,0.00019287,2]
[373399867,1752985859811,-570.29,0.00019287,2]
[373399868,1752985859821,-1414.13,0.00019287,2]
[373399869,1752985859831,-509.00327412,0.00019287,2]
[373399870,1752985859840,-1781.49,0.00019287,2]
[373399871,1752985859850,-2341.12,0.00019287,2]
[373399872,1752985859859,-480.0,0.00019287,2]
[373399873,1752985859869,-546.33,0.00019287,2]
[373399874,1752985859879,-194.427389,0.00019287,2]
[373399875,1752985859888,-480.0,0.00019287,2]
[373399876,1752985859897,-480.0,0.00019287,2]
[373399877,1752985859906,-4420.7,0.00019287,2]
[373399878,1752985859916,-960.15,0.00019287,2]
[373399879,1752985859925,-480.0,0.00019287,2]
[373399880,1752985859937,-555.17921481,0.00019287,2]
[373399881,1752985859947,-480.0,0.00019287,2]
[373399882,1752985859956,-480.0,0.00019287,2]
[373399883,1752985859965,-871.35,0.00019287,2]
[373399884,1752985859974,-536.45,0.00019287,2]
[373399885,1752985859983,-151.0,0.00019287,2]
[373399886,1752985859992,-151.0,0.00019287,2]
[373399887,1752985860002,-701.3,0.00019287,2]
[373399888,1752985860011,-480.0,0.00019287,2]
[373399889,1752985860021,-1246.83,0.00019287,2]
[373399890,1752985860032,-841.96,0.00019287,2]
[373399891,1752985860042,-480.0,0.00019287,2]
[373399892,1752985860052,-480.0,0.00019287,2]
[373399893,1752985860063,-151.0,0.00019287,2]
[373399894,1752985860073,-927.56,0.00019287,2]
[373399895,1752985860083,-547.51,0.00019287,2]
[373399896,1752985860092,-480.0,0.00019287,2]
[373399897,1752985860102,-151.0,0.00019287,2]
[373399898,1752985860112,-707.49,0.00019287,2]
[373399899,1752985860121,-151.0,0.00019287,2]
[373399900,1752985860131,-1238.86,0.00019287,2]
[373399901,1752985860140,-151.0,0.00019287,2]
[373399902,1752985860150,-3486.32,0.00019287,2]
[373399903,1752985860159,-480.0,0.00019287,2]
[373399904,1752985860169,-526.50805402,0.00019287,2]
[373399905,1752985860179,-480.0,0.00019287,2]
[373399906,1752985860188,-533.37130834,0.00019287,2]
[373399907,1752985860198,-206.702035,0.00019287,2]
[373399908,1752985860208,-611.43,0.00019287,2]
[373399909,1752985860218,-1303.65,0.00019287,2]
[373399910,1752985860228,-557.35,0.00019287,2]
[373399911,1752985860238,-645.04,0.00019287,2]
[373399912,1752985860248,-1727.24,0.00019287,2]
[373399913,1752985860258,-480.0,0.00019287,2]
[373399914,1752985860268,-1489.23,0.00019287,2]
[373399915,1752985860278,-480.0,0.00019287,2]
[373399916,1752985860289,-480.0,0.00019287,2]
[373399917,1752985860299,-480.0,0.00019287,2]
[373399918,1752985860309,-480.0,0.00019287,2]
[373399919,1752985860319,-5090.23,0.00019287,2]
[373399920,1752985860330,-480.0,0.00019287,2]
[373399921,1752985860339,-603.1,0.00019287,2]
[373399922,1752985860348,-480.0,0.00019287,2]
[373399923,1752985860358,-480.0,0.00019287,2]
[373399924,1752985860368,-1953.96,0.00019287,2]
[373399925,1752985860377,-480.0,0.00019287,2]
[373399926,1752985860387,-480.0,0.00019287,2]
[373399927,1752985860397,-4193.92,0.00019287,2]
[373399928,1752985860407,-1330.01,0.00019287,2]
[373399929,1752985860417,-480.0,0.00019287,2]
[373399930,1752985860426,-1322.38,0.00019287,2]
[373399931,1752985860436,-151.0,0.00019287,2]
[373399932,1752985860445,-480.0,0.00019287,2]
[373399933,1752985860455,-480.0,0.00019287,2]
[373399934,1752985860464,-480.0,0.00019287,2]
[373399935,1752985860474,-254.95,0.00019287,2]
[373399936,1752985860484,-1037.55,0.00019287,2]
[373399937,1752985860494,-411.958311,0.00019287,2]
[373399938,1752985860503,-603.01,0.00019287,2]
[373399939,1752985860513,-411.958311,0.00019287,2]
[373399940,1752985860523,-574.16768282,0.00019287,2]
[373399941,1752985860533,-1240.21,0.00019287,2]
[373399942,1752985860542,-667.87,0.00019287,2]
[373399943,1752985860552,-411.958311,0.00019287,2]
[373399944,1752985860563,-411.958311,0.00019287,2]
[373399945,1752985860572,-480.0,0.00019287,2]
[373399946,1752985860581,-491.13,0.00019287,2]
[373399947,1752985860592,-480.0,0.00019287,2]
[373399948,1752985860601,-480.0,0.00019287,2]
[373399949,1752985860612,-716.04,0.00019287,2]
[373399950,1752985860622,-527.24377808,0.00019287,2]
[373399951,1752985860632,-939.8,0.00019287,2]
[373399952,1752985860643,-643.53,0.00019287,2]
[373399953,1752985860653,-2719.83,0.00019287,2]
[373399954,1752985860662,-1228.86,0.00019287,2]
[373399955,1752985860672,-480.0,0.00019287,2]
[373399956,1752985860682,-509.7,0.00019287,2]
[373399957,1752985860692,-617.78723098,0.00019287,2]
[373399958,1752985860702,-526.63069054,0.00019287,2]
[373399959,1752985860711,-500.0,0.00019287,2]
[373399960,1752985860721,-1983.83,0.00019287,2]
[373399961,1752985860730,-705.2,0.00019287,2]
[373399962,1752985860740,-530.36909322,0.00019287,2]
[373399963,1752985860750,-480.0,0.00019287,2]
[373399964,1752985860759,-489.09,0.00019287,2]
[373399965,1752985860769,-524.09101935,0.00019287,2]
[373399966,1752985860779,-300.0,0.00019287,2]
[373399967,1752985860789,-942.05,0.00019287,2]
[373399968,1752985860799,-530.25838516,0.00019287,2]
[373399969,1752985860811,-692.08,0.00019287,2]
[373399970,1752985860820,-480.0,0.00019287,2]
[373399971,1752985860830,-530.99973316,0.00019287,2]
[373399972,1752985860840,-1579.23,0.00019287,2]
[373399973,1752985860850,-480.0,0.00019287,2]
[373399974,1752985860860,-480.0,0.00019287,2]
[373399975,1752985860871,-1218.87,0.00019287,2]
[373399976,1752985860880,-480.0,0.00019287,2]
[373399977,1752985860890,-683.25,0.00019287,2]
[373399978,1752985860900,-8380.53,0.00019287,2]
[373399979,1752985860909,-595.35,0.00019287,2]
[373399980,1752985860919,-151.0,0.00019287,2]
[373399981,1752985860929,-151.0,0.00019287,2]
[373399982,1752985860940,-1022.42,0.00019287,2]
[373399983,1752985860949,-480.0,0.00019287,2]
[373399984,1752985860959,-480.0,0.00019287,2]
[373399985,1752985860968,-877.94,0.00019287,2]
[373399986,1752985860979,-1022.41,0.00019287,2]
[373399987,1752985860988,-480.0,0.00019287,2]
[373399988,1752985860997,-480.0,0.00019287,2]
[373399989,1752985861009,-1088.7,0.00019287,2]
[373399990,1752985861018,-917.66,0.00019287,2]
[373399991,1752985861028,-526.02,0.00019287,2]
[373399992,1752985861037,-526.93565287,0.00019287,2]
[373399993,1752985861047,-480.0,0.00019287,2]
[373399994,1752985861056,-480.0,0.00019287,2]
[373399995,1752985861067,-2256.23,0.00019287,2]
[373399996,1752985861077,-151.0,0.00019287,2]
[373399997,1752985861086,-686.92,0.00019287,2]
[373399998,1752985861096,-151.0,0.00019287,2]
[373399999,1752985861105,-3140.62,0.00019287,2]
[373400000,1752985861115,-520.0,0.00019287,2]
[373400001,1752985861124,-480.0,0.00019287,2]
[373400002,1752985861134,-2321.86,0.00019287,2]
[373400003,1752985861143,-576.39,0.00019287,2]
[373400004,1752985861154,-480.0,0.00019287,2]
[373400005,1752985861163,-480.0,0.00019287,2]
[373400006,1752985861173,-285.09,0.00019287,2]
[373400007,1752985861182,-1316.12,0.00019287,2]
[373400008,1752985861192,-480.0,0.00019287,2]
[373400009,1752985861202,-480.0,0.00019287,2]
[373400010,1752985861212,-521.62385513,0.00019287,2]
[373400011,1752985861221,-480.0,0.00019287,2]
[373400012,1752985861231,-23433.38,0.00019287,2]
[373400013,1752985861240,-526.5712367,0.00019287,2]
[373400014,1752985861249,-523.74,0.00019287,2]
[373400015,1752985861259,-1238.86,0.00019287,2]
[373400016,1752985861269,-849.63,0.00019287,2]
[373400017,1752985861278,-480.0,0.00019287,2]
[373400018,1752985861287,-480.0,0.00019287,2]
[373400019,1752985861298,-1177.15497169,0.00019287,2]
[373400022,1752985957594,285.55,0.00013699,2]
[373400024,1752985977512,200.0,0.0002491,120]
[373400036,1752987031476,-500.0,0.00015764,2]
[373400037,1752987031488,-345.00494386,0.00015875,2]
[373400038,1752987031584,-367.99505614,0.00015875,2]
[373400039,1752987031599,-1200.0,0.00015875,2]
[373400040,1752987031611,-1000.0,0.00015876,2]
[373400041,1752987031623,-3000.0,0.00015876,2]
[373400042,1752987031634,-509.0,0.00016819,2]
[373400043,1752987031643,-705.09907042,0.000169,2]
[373400044,1752987031658,-947.31870008,0.00016984,2]
[373400045,1752987031667,-705.09907032,0.00017038,2]
[373400046,1752987031677,-5511.0,0.000171,5]
[373400047,1752987031690,-705.09907032,0.00017176,2]
[373400048,1752987031700,-3180.46,0.00017181,2]
[373400049,1752987031709,-24705.18,0.00017194,2]
[373400050,1752987031719,-610.01,0.00017205,2]
[373400051,1752987031728,-640.99,0.00017211,2]
[373400052,1752987031738,-202.13,0.00017229,2]
[373400053,1752987031748,-1000.0,0.00017246,2]
[373400054,1752987031757,-3000.0,0.00017246,2]
[373400055,1752987031768,-156.0,0.0001726,3]
[373400056,1752987031777,-250.0,0.0001728,2]
[373400057,1752987031787,-200.0,0.0001731,2]
[373400058,1752987031796,-705.09907032,0.00017314,2]
[373400059,1752987031805,-250.0,0.00017341,2]
[373400060,1752987031815,-1680.0,0.00017446,2]
[373400061,1752987031824,-705.09907032,0.00017452,2]
[373400062,1752987031834,-435.0,0.000175,2]
[373400063,1752987031843,-2200.0,0.0001752,2]
[373400064,1752987031853,-705.09907032,0.0001759,2]
[373400065,1752987031863,-150.0,0.0001763,2]
[373400066,1752987031872,-705.09907032,0.00017728,2]
[373400067,1752987031882,-4909.46,0.00017728,2]
[373400068,1752987031891,-3261.41,0.00017728,2]
[373400069,1752987031901,-14157.56,0.00017728,2]
[373400070,1752987031910,-1000.0,0.00017799,2]
[373400071,1752987031919,-169.8,0.0001784,2]
[373400072,1752987031929,-666.0,0.0001786,2]
[373400073,1752987031938,-705.09907032,0.00017866,2]
[373400074,1752987031948,-173.28,0.00017877,2]
[373400075,1752987031958,-2726.07,0.00017925,2]
[373400076,1752987031968,-705.09907032,0.00018003,2]
[373400078,1752987031978,-23512.79,0.00018097,2]
[373400080,1752987031988,-300.0,0.00018137,2]
[373400082,1752987031997,-705.09907032,0.00018141,2]
[373400084,1752987032007,-705.09907032,0.00018279,2]
[373400086,1752987032016,-157.66,0.00018329,2]
[373400088,1752987032025,-207.4,0.00018331,2]
[373400091,1752987032035,-908.27015356,0.00018333,2]
[373400093,1752987032045,-1000.0,0.00018342,2]
[373400094,1752987032055,-3000.0,0.00018342,2]
[373400096,1752987032065,-150.0,0.00018403,2]
[373400098,1752987032074,-705.09907032,0.00018417,2]
[373400099,1752987032083,-151.0,0.00018443,2]
[373400101,1752987032092,-151.0,0.00018447,2]
[373400102,1752987032101,-705.09907032,0.00018555,2]
[373400103,1752987032110,-458.36,0.00018563,2]
[373400104,1752987032119,-351.55,0.00018563,2]
[373400105,1752987032129,-169.1,0.00018563,2]
[373400106,1752987032139,-2200.0,0.00018616,2]
[373400107,1752987032148,-1009.1567231,0.00018641,2]
[373400108,1752987032157,-150.0,0.00018678,2]
[373400109,1752987032166,-301.96,0.00018678,2]
[373400110,1752987032175,-150.0,0.00018678,2]
[373400111,1752987032185,-705.09907032,0.00018693,2]
[373400112,1752987032194,-427.0,0.0001878,2]
[373400113,1752987032203,-1565.68,0.000188,2]
[373400114,1752987032212,-705.09907032,0.00018831,2]
[373400115,1752987032221,-23339.71610323,0.00018872,2]
[373400116,1752987032231,-23339.71610323,0.00018918,2]
[373400117,1752987032240,-23339.71610323,0.00018937,2]
[373400118,1752987032260,-705.09907032,0.00018969,2]
[373400119,1752987032270,-1565.68,0.00019,2]
[373400120,1752987032281,-2856.0,0.00019,2]
[373400121,1752987032291,-3010.0,0.00019,2]
[373400122,1752987032300,-300.0,0.00019044,2]
[373400123,1752987032309,-1079.63557419,0.00019078,2]
[373400124,1752987032318,-705.09907032,0.00019107,2]
[373400125,1752987032327,-150.0,0.00019123,2]
[373400126,1752987032336,-1717.02,0.00019168,2]
[373400127,1752987032345,-12848.7954187,0.00019168,2]
[373400128,1752987032354,-2351.0,0.00019173,2]
[373400129,1752987032364,-500.0,0.00019177,2]
[373400130,1752987032373,-250.59665313,0.00019177,2]
[373400131,1752987032382,-599.62289308,0.00019177,2]
[373400132,1752987032391,-500.0,0.00019178,2]
[373400133,1752987032400,-500.0,0.00019178,2]
[373400134,1752987032409,-500.0,0.00019178,2]
[373400135,1752987032418,-500.0,0.00019178,2]
[373400136,1752987032427,-151.747619,0.00019178,2]
[373400137,1752987032436,-290.49949811,0.00019178,2]
[373400138,1752987032445,-500.0,0.00019178,2]
[373400139,1752987032455,-948.8,0.00019178,2]
[373400140,1752987032464,-504.02332553,0.00019178,2]
[373400141,1752987032475,-500.0,0.00019178,2]
[373400142,1752987032490,-480.0,0.00019178,2]
[373400143,1752987032499,-480.0,0.00019178,2]
[373400144,1752987032508,-480.0,0.00019178,2]
[373400145,1752987032517,-515.24227714,0.00019178,2]
[373400146,1752987032527,-480.0,0.00019178,2]
[373400147,1752987032536,-500.0,0.00019178,2]
[373400148,1752987032546,-399.07385417,0.00019178,2]
[373400149,1752987032555,-500.0,0.00019178,2]
[373400150,1752987032564,-500.0,0.00019178,2]
[373400151,1752987032573,-495.20746394,0.00019178,2]
[373400152,1752987032582,-500.0,0.00019178,2]
[373400153,1752987032591,-480.0,0.00019178,2]
[373400155,1752987032601,-480.0,0.00019178,2]
[373400156,1752987032610,-523.80127475,0.00019178,2]
[373400157,1752987032656,-476.19872525,0.00019178,2]
[373400158,1752987032666,-480.0,0.00019178,2]
[373400159,1752987032675,-480.0,0.00019178,2]
[373400160,1752987032684,-480.0,0.00019178,2]
[373400161,1752987032694,-500.0,0.00019178,2]
[373400162,1752987032703,-500.0,0.00019178,2]
[373400163,1752987032712,-480.0,0.00019178,2]
[373400164,1752987032721,-480.0,0.00019178,2]
[373400165,1752987032733,-499.47454236,0.00019178,2]
[373400166,1752987032743,-500.0,0.00019178,2]
[373400167,1752987032752,-480.0,0.00019178,2]
[373400168,1752987032762,-480.0,0.00019178,2]
[373400169,1752987032771,-500.0,0.00019178,2]
[373400170,1752987032780,-480.0,0.00019178,2]
[373400171,1752987032791,-480.0,0.00019178,2]
[373400172,1752987032800,-471.54993664,0.00019178,2]
[373400173,1752987032810,-474.73347262,0.00019178,2]
[373400174,1752987032819,-480.0,0.00019178,2]
[373400175,1752987032829,-480.0,0.00019178,2]
[373400176,1752987032838,-480.0,0.00019178,2]
[373400177,1752987032847,-440.72814159,0.00019178,2]
[373400178,1752987032857,-480.0,0.00019178,2]
[373400179,1752987032866,-500.0,0.00019178,2]
[373400180,1752987032875,-480.0,0.00019178,2]
[373400181,1752987032885,-500.0,0.00019178,2]
[373400182,1752987032894,-483.91690547,0.00019178,2]
[373400183,1752987032903,-480.0,0.00019178,2]
[373400184,1752987032913,-480.0,0.00019178,2]
[373400185,1752987032922,-480.0,0.00019178,2]
[373400186,1752987032935,-480.0,0.00019178,2]
[373400187,1752987032945,-480.0,0.00019178,2]
[373400188,1752987032955,-480.0,0.00019178,2]
[373400189,1752987032964,-480.0,0.00019178,2]
[373400190,1752987032975,-480.0,0.00019178,2]
[373400191,1752987032984,-480.0,0.00019178,2]
[373400192,1752987032994,-480.0,0.00019178,2]
[373400193,1752987033004,-441.23532283,0.00019178,2]
[373400194,1752987033014,-480.0,0.00019178,2]
[373400195,1752987033024,-480.0,0.00019178,2]
[373400196,1752987033035,-480.0,0.00019178,2]
[373400197,1752987033047,-500.0,0.00019178,2]
[373400198,1752987033058,-402.06571168,0.00019178,2]
[373400199,1752987033068,-601.64501553,0.00019178,2]
[373400200,1752987033078,-480.0,0.00019178,2]
[373400201,1752987033088,-4893.14,0.00019178,2]
[373400202,1752987033097,-488.66304844,0.00019178,2]
[373400203,1752987033108,-187.65171983,0.00019178,2]
[373400204,1752987033117,-480.0,0.00019178,2]
[373400205,1752987033127,-480.0,0.00019178,2]
[373400206,1752987033138,-504.9538755,0.00019178,2]
[373400207,1752987033148,-671.09,0.00019178,2]
[373400208,1752987033158,-480.0,0.00019178,2]
[373400209,1752987033167,-485.73206797,0.00019178,2]
[373400210,1752987033178,-480.0,0.00019178,2]
[373400211,1752987033187,-480.0,0.00019178,2]
[373400212,1752987033197,-480.0,0.00019178,2]
[373400213,1752987033207,-480.0,0.00019178,2]
[373400214,1752987033216,-490.55,0.00019178,2]
[373400215,1752987033225,-480.0,0.00019178,2]
[373400216,1752987033235,-943.26,0.00019178,2]
[373400217,1752987033245,-480.0,0.00019178,2]
[373400218,1752987033255,-500.0,0.00019178,2]
[373400219,1752987033265,-480.0,0.00019178,2]
[373400220,1752987033275,-611.58,0.00019178,2]
[373400221,1752987033284,-480.0,0.00019178,2]
[373400222,1752987033296,-480.0,0.00019178,2]
[373400223,1752987033306,-658.02,0.00019178,2]
[373400224,1752987033318,-480.0,0.00019178,2]
[373400225,1752987033328,-480.0,0.00019178,2]
[373400226,1752987033337,-578.21695535,0.00019178,2]
[373400227,1752987033347,-480.0,0.00019178,2]
[373400228,1752987033357,-480.0,0.00019178,2]
[373400229,1752987033366,-771.89,0.00019178,2]
[373400230,1752987033376,-571.58,0.00019178,2]
[373400231,1752987033386,-480.0,0.00019178,2]
[373400232,1752987033395,-480.0,0.00019178,2]
[373400233,1752987033405,-480.0,0.00019178,2]
[373400234,1752987033414,-480.0,0.00019178,2]
[373400235,1752987033424,-532.4,0.00019178,2]
[373400236,1752987033434,-480.0,0.00019178,2]
[373400237,1752987033443,-480.0,0.00019178,2]
[373400238,1752987033453,-480.0,0.00019178,2]
[373400239,1752987033463,-524.55,0.00019178,2]
[373400240,1752987033473,-510.02,0.00019178,2]
[373400241,1752987033483,-480.0,0.00019178,2]
[373400242,1752987033492,-480.0,0.00019178,2]
[373400243,1752987033502,-720.94,0.00019178,2]
[373400244,1752987033512,-480.0,0.00019178,2]
[373400245,1752987033521,-480.0,0.00019178,2]
[373400246,1752987033530,-480.0,0.00019178,2]
[373400247,1752987033541,-480.0,0.00019178,2]
[373400248,1752987033550,-480.0,0.00019178,2]
[373400249,1752987033559,-480.0,0.00019178,2]
[373400250,1752987033568,-433.895,0.00019178,2]
[373400251,1752987033578,-480.0,0.00019178,2]
[373400252,1752987033588,-647.64,0.00019178,2]
[373400253,1752987033598,-480.0,0.00019178,2]
[373400254,1752987033608,-480.0,0.00019178,2]
[373400255,1752987033619,-480.0,0.00019178,2]
[373400256,1752987033628,-480.0,0.00019178,2]
[373400257,1752987033638,-480.0,0.00019178,2]